fUSD/lending_fUSD_20240210
["ID","MTS","AMOUNT","RATE_DAILY","PERIOD"]
[313691946,1707587329668,-500.0,0.0004,30]
[313691947,1707587329702,-500.0,0.0004,30]
[313691948,1707587329737,-537.38,0.0004,30]
[313691949,1707587329769,-500.0,0.0004,30]
[313691950,1707587329803,-500.0,0.0004,30]
[313691951,1707587329835,-500.0,0.0004,30]
[313691952,1707587329868,-940.17,0.0004,30]
[313691953,1707587329900,-2058.09,0.0004,30]
[313691954,1707587329934,-533.26,0.0004,30]
[313691955,1707587329966,-500.0,0.0004,30]
[313691956,1707587329998,-500.0,0.0004,30]
[313691957,1707587330035,-500.0,0.0004,30]
[313691958,1707587330067,-500.0,0.0004,30]
[313691959,1707587330098,-507.56,0.0004,30]
[313691960,1707587330130,-500.0,0.0004,30]
[313691961,1707587330163,-500.0,0.0004,30]
[313691962,1707587330196,-653.17,0.0004,30]
[313691963,1707587330425,-1566.47,0.0004,30]
[313691964,1707587330463,-500.0,0.0004,30]
[313691965,1707587330496,-500.0,0.0004,30]
[313691966,1707587330528,-500.0,0.0004,30]
[313691967,1707587330560,-500.0,0.0004,30]
[313691968,1707587330593,-695.9,0.0004,30]
[313691969,1707587330625,-639.84,0.0004,30]
[313691970,1707587330658,-500.0,0.0004,30]
[313691971,1707587330691,-500.0,0.0004,30]
[313691972,1707587330724,-500.0,0.0004,30]
[313691973,1707587330756,-500.0,0.0004,30]
[313691974,1707587330789,-500.0,0.0004,30]
[313691975,1707587330821,-500.0,0.0004,30]
[313691976,1707587330857,-21326.42822136,0.0004,30]
[313691977,1707587330890,-1431.68,0.0004,30]
[313691978,1707587330921,-1000.0,0.0004,120]
[313691979,1707587330956,-500.0,0.0004,30]
[313691980,1707587330989,-523.41,0.0004,30]
[313691981,1707587331022,-1209.67,0.0004,30]
[313691982,1707587331057,-727.64,0.0004,30]
[313691983,1707587331090,-483.97,0.0004,30]
[313691984,1707587331122,-500.0,0.0004,30]
[313691985,1707587331155,-1695.73,0.0004,30]
[313691986,1707587331190,-500.0,0.0004,30]
[313691987,1707587331230,-500.0,0.0004,30]
[313691988,1707587331264,-500.0,0.0004,30]
[313691989,1707587331299,-500.0,0.0004,30]
[313691990,1707587331332,-636.9,0.0004,30]
[313691991,1707587331366,-552.79,0.0004,30]
[313691992,1707587331400,-822.03,0.0004,30]
[313691993,1707587331438,-969.79,0.0004,30]
[313691994,1707587331477,-500.0,0.0004,30]
[313691995,1707587331511,-500.0,0.0004,30]
[313691996,1707587331545,-500.0,0.0004,30]
[313691997,1707587331578,-500.0,0.0004,30]
[313691998,1707587331612,-519.84,0.0004,30]
[313691999,1707587331647,-150.0,0.0004,120]
[313692000,1707587331682,-574.94,0.0004,30]
[313692001,1707587331715,-520.2,0.0004,30]
[313692002,1707587331747,-726.91,0.0004,30]
[313692003,1707587331779,-500.0,0.0004,30]
[313692004,1707587331812,-500.0,0.0004,30]
[313692005,1707587331844,-150.0,0.00040092,30]
[313692006,1707587331892,-151.608734,0.0004015,30]
[313692007,1707587331926,-5010.0,0.0004015,30]
[313692008,1707587331960,-1084.73,0.00040273,30]
[313692009,1707587331992,-500.0,0.00040273,30]
[313692010,1707587332023,-700.22,0.00040273,30]
[313692011,1707587332055,-500.0,0.00040273,30]
[313692012,1707587332088,-500.0,0.00040273,30]
[313692013,1707587332120,-500.0,0.00040273,30]
[313692014,1707587332154,-500.0,0.00040273,30]
[313692015,1707587332191,-743.57,0.00040273,30]
[313692016,1707587332225,-500.0,0.00040273,30]
[313692017,1707587332259,-794.2,0.00040273,30]
[313692018,1707587332292,-500.0,0.00040273,30]
[313692019,1707587332325,-500.0,0.00040273,30]
[313692020,1707587332358,-533.56,0.00040273,30]
[313692021,1707587332392,-500.0,0.00040273,30]
[313692022,1707587332427,-500.0,0.00040273,30]
[313692023,1707587332463,-513.21,0.00040273,30]
[313692024,1707587332495,-506.34,0.00040273,30]
[313692025,1707587332529,-500.0,0.00040273,30]
[313692026,1707587332562,-500.0,0.00040273,30]
[313692027,1707587332595,-543.5,0.00040273,30]
[313692028,1707587332628,-500.0,0.00040273,30]
[313692029,1707587332661,-500.0,0.00040273,30]
[313692030,1707587332693,-500.0,0.00040273,30]
[313692031,1707587332726,-500.0,0.00040273,30]
[313692032,1707587332757,-500.0,0.00040273,30]
[313692033,1707587332791,-643.45,0.00040273,30]
[313692034,1707587332824,-594.35,0.00040273,30]
[313692035,1707587332856,-500.0,0.00040273,30]
[313692036,1707587332887,-500.0,0.00040273,30]
[313692037,1707587332920,-500.0,0.00040273,30]
[313692038,1707587332952,-500.0,0.00040273,30]
[313692039,1707587332991,-500.0,0.00040273,30]
[313692040,1707587333023,-500.0,0.00040273,30]
[313692041,1707587333055,-500.0,0.00040273,30]
[313692042,1707587333087,-636.08,0.00040273,30]
[313692043,1707587333119,-500.0,0.00040273,30]
[313692044,1707587333152,-500.0,0.00040273,30]
[313692045,1707587333186,-506.82,0.00040273,30]
[313692046,1707587333219,-500.0,0.00040273,30]
[313692047,1707587333255,-500.0,0.00040273,30]
[313692048,1707587333294,-500.0,0.00040273,30]
[313692049,1707587333332,-500.0,0.00040273,30]
[313692050,1707587333368,-500.0,0.00040273,30]
[313692051,1707587333405,-500.0,0.00040273,30]
[313692052,1707587333440,-500.0,0.00040273,30]
[313692053,1707587333473,-500.0,0.00040273,30]
[313692054,1707587333505,-500.0,0.00040273,30]
[313692055,1707587333537,-500.0,0.00040273,30]
[313692056,1707587333568,-500.0,0.00040273,30]
[313692057,1707587333600,-500.0,0.00040273,30]
[313692058,1707587333633,-500.0,0.00040273,30]
[313692059,1707587333669,-1343.72,0.00040273,30]
[313692060,1707587333702,-500.0,0.00040273,30]
[313692061,1707587333734,-630.33,0.00040273,30]
[313692062,1707587333766,-500.0,0.00040273,30]
[313692063,1707587333799,-1359.44,0.00040273,30]
[313692064,1707587333831,-617.86,0.00040273,30]
[313692065,1707587333863,-500.0,0.00040273,30]
[313692066,1707587333895,-500.0,0.00040273,30]
[313692067,1707587334070,-849.56,0.00040273,30]
[313692068,1707587334111,-1189.34,0.00040273,30]
[313692069,1707587334145,-515.6,0.00040273,30]
[313692070,1707587334186,-500.0,0.00040273,30]
[313692071,1707587334220,-500.0,0.00040273,30]
[313692072,1707587334254,-731.92,0.00040273,30]
[313692073,1707587334288,-500.0,0.00040273,30]
[313692074,1707587334324,-500.0,0.00040273,30]
[313692075,1707587334358,-525.58,0.00040273,30]
[313692076,1707587334393,-977.73,0.00040273,30]
[313692077,1707587334430,-500.0,0.00040273,30]
[313692078,1707587334465,-561.13,0.00040273,30]
[313692079,1707587334499,-1026.02,0.00040273,30]
[313692080,1707587334532,-500.0,0.00040273,30]
[313692081,1707587334566,-1242.56,0.00040273,30]
[313692082,1707587334599,-645.83,0.00040273,30]
[313692083,1707587334633,-500.0,0.00040273,30]
[313692084,1707587334666,-500.0,0.00040273,30]
[313692085,1707587334699,-500.0,0.00040273,30]
[313692086,1707587334733,-873.15,0.00040273,30]
[313692087,1707587334765,-500.0,0.00040273,30]
[313692088,1707587334796,-529.55,0.00040273,30]
[313692089,1707587334835,-779.81,0.00040273,30]
[313692090,1707587334868,-1056.2,0.00040273,30]
[313692091,1707587334900,-500.0,0.00040273,30]
[313692092,1707587334933,-519.82,0.00040273,30]
[313692093,1707587334968,-678.81,0.00040273,30]
[313692094,1707587335002,-500.0,0.00040273,30]
[313692095,1707587335036,-705.9,0.00040273,30]
[313692096,1707587335070,-1052.93,0.00040273,30]
[313692097,1707587335103,-500.0,0.00040273,30]
[313692098,1707587335136,-684.62,0.00040273,30]
[313692099,1707587335171,-1004.11,0.00040273,30]
[313692100,1707587335205,-711.92,0.00040273,30]
[313692101,1707587335238,-500.0,0.00040273,30]
[313692102,1707587335272,-667.08,0.00040273,30]
[313692103,1707587335308,-754.28,0.00040273,30]
[313692104,1707587335344,-500.0,0.00040273,30]
[313692105,1707587335376,-500.0,0.00040273,30]
[313692106,1707587335409,-509.63,0.00040273,30]
[313692107,1707587335442,-1382.71,0.00040273,30]
[313692108,1707587335476,-1447.85,0.00040273,30]
[313692109,1707587335510,-1223.13,0.00040273,30]
[313692110,1707587335545,-611.01,0.00040273,30]
[313692111,1707587335581,-969.91,0.00040273,30]
[313692112,1707587335614,-1057.09,0.00040273,30]
[313692113,1707587335648,-672.89,0.00040273,30]
[313692114,1707587335680,-250.0,0.00040273,30]
[313692115,1707587335712,-500.0,0.00040273,30]
[313692116,1707587335746,-1517.8,0.00040273,30]
[313692117,1707587335784,-1316.97,0.00040273,30]
[313692118,1707587335818,-738.23,0.00040273,30]
[313692119,1707587335850,-500.0,0.00040273,30]
[313692120,1707587335883,-1631.07,0.00040273,30]
[313692121,1707587335915,-500.0,0.00040273,30]
[313692122,1707587335948,-706.87,0.00040273,30]
[313692123,1707587335981,-765.85,0.00040273,30]
[313692124,1707587336016,-1109.61,0.00040273,30]
[313692125,1707587336050,-1493.22,0.00040273,30]
[313692126,1707587336084,-500.0,0.00040273,30]
[313692127,1707587336118,-1173.55,0.00040273,30]
[313692128,1707587336153,-514.5,0.00040273,30]
[313692129,1707587336187,-500.0,0.00040273,30]
[313692130,1707587336222,-1076.65,0.00040273,30]
[313692131,1707587336256,-179.6201208,0.00040273,30]
[313692132,1707587336290,-500.0,0.00040273,30]
[313692133,1707587336324,-1126.72,0.00040273,30]
[313692134,1707587336358,-500.0,0.00040273,30]
[313692135,1707587336392,-500.0,0.00040273,30]
[313692136,1707587336427,-1151.29,0.00040273,30]
[313692137,1707587336461,-1633.0,0.00040273,30]
[313692138,1707587336495,-500.0,0.00040273,30]
[313692139,1707587336530,-500.0,0.00040273,30]
[313692140,1707587336562,-500.0,0.00040273,30]
[313692141,1707587336595,-1429.03,0.00040273,30]
[313692142,1707587336629,-500.0,0.00040273,30]
[313692143,1707587336662,-623.04,0.00040273,30]
[313692144,1707587336696,-500.0,0.00040273,30]
[313692145,1707587336730,-500.0,0.00040273,30]
[313692146,1707587336762,-1193.5,0.00040273,30]
[313692147,1707587336795,-1288.88,0.00040273,30]
[313692148,1707587336827,-500.0,0.00040273,30]
[313692149,1707587336860,-1073.46,0.00040273,30]
[313692150,1707587336893,-1221.03,0.00040273,30]
[313692151,1707587336924,-500.0,0.00040273,30]
[313692152,1707587336956,-500.0,0.00040273,30]
[313692153,1707587336988,-500.0,0.00040273,30]
[313692154,1707587337019,-1296.34,0.00040273,30]
[313692155,1707587337050,-500.0,0.00040273,30]
[313692156,1707587337081,-677.17,0.00040273,30]
[313692157,1707587337113,-1153.81,0.00040273,30]
[313692158,1707587337144,-984.72,0.00040273,30]
[313692159,1707587337177,-500.0,0.00040273,30]
[313692160,1707587337210,-1897.56,0.00040273,30]
[313692161,1707587337243,-555.2,0.00040273,30]
[313692162,1707587337277,-500.0,0.00040273,30]
[313692163,1707587337317,-542.42,0.00040273,30]
[313692164,1707587337356,-500.0,0.00040273,30]
[313692165,1707587337396,-573.6,0.00040273,30]
[313692166,1707587337431,-500.0,0.00040273,30]
[313692167,1707587337465,-500.0,0.00040273,30]
[313692168,1707587337498,-500.0,0.00040273,30]
[313692169,1707587337531,-1609.58,0.00040273,30]
[313692170,1707587337564,-1423.85,0.00040273,30]
[313692171,1707587337750,-500.0,0.00040273,30]
[313692172,1707587337792,-1220.89,0.00040273,30]
[313692173,1707587337825,-500.0,0.00040273,30]
[313692174,1707587337857,-500.0,0.00040273,30]
[313692175,1707587337890,-627.76,0.00040273,30]
[313692176,1707587337925,-586.63,0.00040273,30]
[313692177,1707587337957,-1575.17,0.00040273,30]
[313692178,1707587337988,-500.0,0.00040273,30]
[313692179,1707587338023,-500.0,0.00040273,30]
[313692180,1707587338055,-2197.66,0.00040273,30]
[313692181,1707587338088,-849.0,0.00040273,30]
[313692182,1707587338122,-500.0,0.00040273,30]
[313692183,1707587338156,-529.49,0.00040273,30]
[313692184,1707587338189,-500.0,0.00040273,30]
[313692185,1707587338222,-2142.16,0.00040273,30]
[313692186,1707587338254,-1257.96,0.00040273,30]
[313692187,1707587338286,-847.82,0.00040273,30]
[313692188,1707587338318,-500.0,0.00040273,30]
[313692189,1707587338351,-500.0,0.00040273,30]
[313692190,1707587338382,-500.0,0.00040273,30]
[313692191,1707587338416,-500.0,0.00040273,30]
[313692192,1707587338448,-587.75,0.00040273,30]
[313692193,1707587338480,-1504.28,0.00040273,30]
[313692194,1707587338511,-773.57,0.00040273,30]
[313692195,1707587338543,-1079.05,0.00040273,30]
[313692196,1707587338573,-500.0,0.00040273,30]
[313692197,1707587338604,-1348.64,0.00040273,30]
[313692198,1707587338638,-872.64,0.00040273,30]
[313692199,1707587338670,-500.0,0.00040273,30]
[313692200,1707587338703,-500.0,0.00040273,30]
[313692201,1707587338737,-1396.29,0.00040273,30]
[313692202,1707587338769,-500.0,0.00040273,30]
[313692203,1707587338803,-500.0,0.00040273,30]
[313692204,1707587338836,-500.0,0.00040273,30]
[313692205,1707587338866,-1241.2,0.00040273,30]
[313692206,1707587338898,-500.0,0.00040273,30]
[313692207,1707587338929,-695.42,0.00040273,30]
[313692208,1707587338960,-4903.15,0.00040273,30]
[313692209,1707587338992,-500.0,0.00040273,30]
[313692210,1707587339024,-514.73,0.00040273,30]
[313692211,1707587339055,-500.0,0.00040273,30]
[313692212,1707587339088,-3083.4,0.00040273,30]
[313692213,1707587339121,-500.0,0.00040273,30]
[313692214,1707587339156,-500.0,0.00040273,30]
[313692215,1707587339189,-855.61,0.00040273,30]
[313692216,1707587339221,-527.2,0.00040273,30]
[313692217,1707587339253,-500.0,0.00040273,30]
[313692218,1707587339285,-500.0,0.00040273,30]
[313692219,1707587339319,-500.0,0.00040273,30]
[313692220,1707587339358,-500.0,0.00040273,30]
[313692221,1707587339391,-500.0,0.00040273,30]
[313692222,1707587339429,-500.0,0.00040273,30]
[313692223,1707587339462,-500.0,0.00040273,30]
[313692224,1707587339498,-500.0,0.00040273,30]
[313692225,1707587339533,-537.38,0.00040273,30]
[313692226,1707587339565,-500.0,0.00040273,30]
[313692227,1707587339598,-500.0,0.00040273,30]
[313692228,1707587339632,-500.0,0.00040273,30]
[313692229,1707587339666,-940.17,0.00040273,30]
[313692230,1707587339700,-2058.09,0.00040273,30]
[313692231,1707587339736,-533.26,0.00040273,30]
[313692232,1707587339768,-504.7462441,0.00040273,30]
[313692233,1707587339799,-500.0,0.00040273,30]
[313692234,1707587339833,-500.0,0.00040273,30]
[313692235,1707587339866,-500.0,0.00040273,30]
[313692236,1707587339898,-507.56,0.00040273,30]
[313692237,1707587339929,-500.0,0.00040273,30]
[313692238,1707587339963,-500.0,0.00040273,30]
[313692239,1707587339996,-653.17,0.00040273,30]
[313692240,1707587340030,-1566.47,0.00040273,30]
[313692241,1707587340063,-500.0,0.00040273,30]
[313692242,1707587340097,-500.0,0.00040273,30]
[313692243,1707587340130,-500.0,0.00040273,30]
[313692244,1707587340164,-500.0,0.00040273,30]
[313692245,1707587340198,-695.9,0.00040273,30]
[313692246,1707587340231,-639.84,0.00040273,30]
[313692247,1707587340264,-500.0,0.00040273,30]
[313692248,1707587340296,-500.0,0.00040273,30]
[313692249,1707587340331,-500.0,0.00040273,30]
[313692250,1707587340366,-500.0,0.00040273,30]
[313692251,1707587340399,-500.0,0.00040273,30]
[313692252,1707587340432,-500.0,0.00040273,30]
[313692253,1707587340465,-1431.68,0.00040273,30]
[313692254,1707587340498,-1000.0,0.00040273,120]
[313692255,1707587340532,-500.0,0.00040273,30]
[313692256,1707587340567,-523.41,0.00040273,30]
[313692257,1707587340601,-1209.67,0.00040273,30]
[313692258,1707587340635,-727.64,0.00040273,30]
[313692259,1707587340667,-500.0,0.00040273,30]
[313692260,1707587340700,-1695.73,0.00040273,30]
[313692261,1707587340733,-500.0,0.00040273,30]
[313692262,1707587340766,-500.0,0.00040273,30]
[313692263,1707587340797,-500.0,0.00040273,30]
[313692264,1707587340829,-500.0,0.00040273,30]
[313692265,1707587340862,-636.9,0.00040273,30]
[313692266,1707587340894,-552.79,0.00040273,30]
[313692267,1707587340925,-822.03,0.00040273,30]
[313692268,1707587340957,-969.79,0.00040273,30]
[313692269,1707587340995,-500.0,0.00040273,30]
[313692270,1707587341031,-500.0,0.00040273,30]
[313692271,1707587341065,-500.0,0.00040273,30]
[313692272,1707587341097,-500.0,0.00040273,30]
[313692273,1707587341129,-519.84,0.00040273,30]
[313692274,1707587341164,-574.94,0.00040273,30]
[313692275,1707587341345,-520.2,0.00040273,30]
[313692276,1707587341382,-726.91,0.00040273,30]
[313692277,1707587341417,-500.0,0.00040273,30]
[313692278,1707587341451,-200.0,0.000404,30]
[313692279,1707587341484,-1000.0,0.000405,30]
[313692280,1707587341515,-1084.73,0.00040547,30]
[313692281,1707587341547,-500.0,0.00040547,30]
[313692282,1707587341578,-700.22,0.00040547,30]
[313692283,1707587341614,-167.29248633,0.00040547,30]
[313692284,1707587341646,-500.0,0.00040547,30]
[313692285,1707587341676,-500.0,0.00040547,30]
[313692286,1707587341708,-605.06780186,0.00040547,30]
[313692287,1707587341740,-743.57,0.00040547,30]
[313692288,1707587341773,-500.0,0.00040547,30]
[313692289,1707587341805,-794.2,0.00040547,30]
[313692290,1707587341837,-500.0,0.00040547,30]
[313692291,1707587341867,-500.0,0.00040547,30]
[313692292,1707587341899,-533.56,0.00040547,30]
[313692293,1707587341930,-500.0,0.00040547,30]
[313692294,1707587341961,-500.0,0.00040547,30]
[313692295,1707587341995,-513.21,0.00040547,30]
[313692296,1707587342026,-506.34,0.00040547,30]
[313692297,1707587342058,-500.0,0.00040547,30]
[313692298,1707587342089,-500.0,0.00040547,30]
[313692299,1707587342121,-543.5,0.00040547,30]
[313692300,1707587342154,-500.0,0.00040547,30]
[313692301,1707587342186,-536.86406194,0.00040547,30]
[313692302,1707587342219,-500.0,0.00040547,30]
[313692303,1707587342252,-500.0,0.00040547,30]
[313692304,1707587342284,-500.0,0.00040547,30]
[313692305,1707587342319,-643.45,0.00040547,30]
[313692306,1707587342351,-594.35,0.00040547,30]
[313692307,1707587342383,-500.0,0.00040547,30]
[313692308,1707587342419,-500.0,0.00040547,30]
[313692309,1707587342451,-500.0,0.00040547,30]
[313692310,1707587342483,-500.0,0.00040547,30]
[313692311,1707587342515,-500.0,0.00040547,30]
[313692312,1707587342549,-500.0,0.00040547,30]
[313692313,1707587342583,-500.0,0.00040547,30]
[313692314,1707587342616,-636.08,0.00040547,30]
[313692315,1707587342648,-500.0,0.00040547,30]
[313692316,1707587342685,-500.0,0.00040547,30]
[313692317,1707587342719,-506.82,0.00040547,30]
[313692318,1707587342754,-500.0,0.00040547,30]
[313692319,1707587342787,-500.0,0.00040547,30]
[313692320,1707587342821,-500.0,0.00040547,30]
[313692321,1707587342854,-500.0,0.00040547,30]
[313692322,1707587342887,-500.0,0.00040547,30]
[313692323,1707587342921,-500.0,0.00040547,30]
[313692324,1707587342953,-500.0,0.00040547,30]
[313692325,1707587342986,-500.0,0.00040547,30]
[313692326,1707587343018,-500.0,0.00040547,30]
[313692327,1707587343051,-396.61797034,0.00040547,30]
[313692328,1707587343083,-500.0,0.00040547,30]
[313692329,1707587343118,-500.0,0.00040547,30]
[313692330,1707587343152,-1343.72,0.00040547,30]
[313692331,1707587343187,-500.0,0.00040547,30]
[313692332,1707587343221,-500.0,0.00040547,30]
[313692333,1707587343256,-630.33,0.00040547,30]
[313692334,1707587343288,-1359.44,0.00040547,30]
[313692335,1707587343321,-617.86,0.00040547,30]
[313692336,1707587343353,-500.0,0.00040547,30]
[313692337,1707587343385,-500.0,0.00040547,30]
[313692338,1707587343419,-849.56,0.00040547,30]
[313692339,1707587343452,-1189.34,0.00040547,30]
[313692340,1707587343485,-515.6,0.00040547,30]
[313692341,1707587343518,-500.0,0.00040547,30]
[313692342,1707587343551,-731.92,0.00040547,30]
[313692343,1707587343583,-500.0,0.00040547,30]
[313692344,1707587343615,-500.0,0.00040547,30]
[313692345,1707587343649,-500.0,0.00040547,30]
[313692346,1707587343682,-525.58,0.00040547,30]
[313692347,1707587343716,-977.73,0.00040547,30]
[313692348,1707587343751,-500.0,0.00040547,30]
[313692349,1707587343786,-561.13,0.00040547,30]
[313692350,1707587343821,-1026.02,0.00040547,30]
[313692351,1707587343857,-500.0,0.00040547,30]
[313692352,1707587343890,-1242.56,0.00040547,30]
[313692353,1707587343923,-645.83,0.00040547,30]
[313692354,1707587343955,-500.0,0.00040547,30]
[313692355,1707587343987,-500.0,0.00040547,30]
[313692356,1707587344019,-500.0,0.00040547,30]
[313692357,1707587344052,-873.15,0.00040547,30]
[313692358,1707587344085,-500.0,0.00040547,30]
[313692359,1707587344125,-529.55,0.00040547,30]
[313692360,1707587344165,-779.81,0.00040547,30]
[313692361,1707587344201,-1056.2,0.00040547,30]
[313692362,1707587344235,-500.0,0.00040547,30]
[313692363,1707587344267,-519.82,0.00040547,30]
[313692364,1707587344299,-678.81,0.00040547,30]
[313692365,1707587344332,-500.0,0.00040547,30]
[313692366,1707587344365,-705.9,0.00040547,30]
[313692367,1707587344402,-1052.93,0.00040547,30]
[313692368,1707587344436,-500.0,0.00040547,30]
[313692369,1707587344468,-684.62,0.00040547,30]
[313692370,1707587344501,-1004.11,0.00040547,30]
[313692371,1707587344534,-711.92,0.00040547,30]
[313692372,1707587344567,-500.0,0.00040547,30]
[313692373,1707587344600,-667.08,0.00040547,30]
[313692374,1707587344634,-754.28,0.00040547,30]
[313692375,1707587344666,-500.0,0.00040547,30]
[313692376,1707587344700,-500.0,0.00040547,30]
[313692377,1707587344733,-509.63,0.00040547,30]
[313692378,1707587344765,-1382.71,0.00040547,30]
[313692379,1707587344950,-1447.85,0.00040547,30]
[313692380,1707587344983,-1223.13,0.00040547,30]
[313692381,1707587345016,-611.01,0.00040547,30]
[313692382,1707587345048,-969.91,0.00040547,30]
[313692383,1707587345081,-1057.09,0.00040547,30]
[313692384,1707587345114,-672.89,0.00040547,30]
[313692385,1707587345150,-250.0,0.00040547,30]
[313692386,1707587345184,-500.0,0.00040547,30]
[313692387,1707587345220,-1517.8,0.00040547,30]
[313692388,1707587345255,-1316.97,0.00040547,30]
[313692389,1707587345291,-738.23,0.00040547,30]
[313692390,1707587345325,-500.0,0.00040547,30]
[313692391,1707587345363,-1631.07,0.00040547,30]
[313692392,1707587345400,-500.0,0.00040547,30]
[313692393,1707587345436,-706.87,0.00040547,30]
[313692394,1707587345470,-765.85,0.00040547,30]
[313692395,1707587345505,-1109.61,0.00040547,30]
[313692396,1707587345539,-1493.22,0.00040547,30]
[313692397,1707587345574,-326.16962051,0.00040547,30]
[313692398,1707587345609,-1173.55,0.00040547,30]
[313692399,1707587345643,-514.5,0.00040547,30]
[313692400,1707587345678,-500.0,0.00040547,30]
[313692401,1707587345711,-1076.65,0.00040547,30]
[313692402,1707587345745,-366.04656196,0.00040547,30]
[313692403,1707587345779,-1126.72,0.00040547,30]
[313692404,1707587345811,-500.0,0.00040547,30]
[313692405,1707587345843,-500.0,0.00040547,30]
[313692406,1707587345875,-1151.29,0.00040547,30]
[313692407,1707587345907,-1633.0,0.00040547,30]
[313692408,1707587345939,-500.0,0.00040547,30]
[313692409,1707587345971,-500.0,0.00040547,30]
[313692410,1707587346004,-363.96,0.00040547,30]
[313692411,1707587346038,-1429.03,0.00040547,30]
[313692412,1707587346071,-623.04,0.00040547,30]
[313692413,1707587346102,-500.0,0.00040547,30]
[313692414,1707587346135,-500.0,0.00040547,30]
[313692415,1707587346169,-500.0,0.00040547,30]
[313692416,1707587346204,-1193.5,0.00040547,30]
[313692417,1707587346239,-1288.88,0.00040547,30]
[313692418,1707587346273,-500.0,0.00040547,30]
[313692419,1707587346306,-1073.46,0.00040547,30]
[313692420,1707587346342,-1221.03,0.00040547,30]
[313692421,1707587346378,-317.76,0.00040547,30]
[313692422,1707587346412,-500.0,0.00040547,30]
[313692423,1707587346445,-500.0,0.00040547,30]
[313692424,1707587346479,-1296.34,0.00040547,30]
[313692425,1707587346512,-500.0,0.00040547,30]
[313692426,1707587346545,-677.17,0.00040547,30]
[313692427,1707587346578,-1153.81,0.00040547,30]
[313692428,1707587346609,-984.72,0.00040547,30]
[313692429,1707587346641,-500.0,0.00040547,30]
[313692430,1707587346675,-1897.56,0.00040547,30]
[313692431,1707587346708,-555.2,0.00040547,30]
[313692432,1707587346741,-500.0,0.00040547,30]
[313692433,1707587346774,-542.42,0.00040547,30]
[313692434,1707587346806,-500.0,0.00040547,30]
[313692435,1707587346839,-573.6,0.00040547,30]
[313692436,1707587346873,-500.0,0.00040547,30]
[313692437,1707587346905,-500.0,0.00040547,30]
[313692438,1707587346937,-500.0,0.00040547,30]
[313692439,1707587346969,-1609.58,0.00040547,30]
[313692440,1707587347003,-1423.85,0.00040547,30]
[313692441,1707587347035,-500.0,0.00040547,30]
[313692442,1707587347068,-1220.89,0.00040547,30]
[313692443,1707587347100,-500.0,0.00040547,30]
[313692444,1707587347132,-500.0,0.00040547,30]
[313692445,1707587347165,-627.76,0.00040547,30]